fUSD/lending_fUSD_20250416
["ID","MTS","AMOUNT","RATE_DAILY","PERIOD"]
[358148350,1744770638076,-925.44137537,0.00017999,2]
[358148351,1744770638087,-925.44137537,0.00017999,2]
[358148352,1744770638097,-925.44137537,0.00017999,2]
[358148353,1744770638107,-925.44137537,0.00017999,2]
[358148354,1744770638120,-925.44137537,0.00017999,2]
[358148355,1744770638129,-925.44137537,0.00017999,2]
[358148356,1744770638139,-925.44137537,0.00017999,2]
[358148357,1744770638149,-925.44137537,0.00017999,2]
[358148358,1744770638159,-925.44137537,0.00017999,2]
[358148359,1744770638168,-925.44137537,0.00017999,2]
[358148360,1744770638178,-925.44137537,0.00017999,2]
[358148361,1744770638196,-925.44137537,0.00017999,2]
[358148362,1744770638208,-925.44137537,0.00017999,2]
[358148363,1744770638218,-925.44137537,0.00017999,2]
[358148364,1744770638227,-925.44137537,0.00017999,2]
[358148365,1744770638237,-925.44137537,0.00017999,2]
[358148366,1744770638247,-925.44137537,0.00017999,2]
[358148367,1744770638258,-925.44137537,0.00017999,2]
[358148368,1744770638268,-925.44137537,0.00017999,2]
[358148369,1744770638278,-925.44137537,0.00017999,2]
[358148370,1744770638287,-925.44137537,0.00017999,2]
[358148371,1744770638297,-925.44137537,0.00017999,2]
[358148372,1744770638307,-925.44137537,0.00017999,2]
[358148373,1744770638317,-925.44137537,0.00017999,2]
[358148374,1744770638328,-894.59332952,0.00017999,2]
[358148375,1744770638338,-894.59332952,0.00017999,2]
[358148376,1744770638348,-894.59332952,0.00017999,2]
[358148377,1744770638358,-894.59332952,0.00017999,2]
[358148378,1744770638368,-894.59332952,0.00017999,2]
[358148379,1744770638379,-894.59332952,0.00017999,2]
[358148380,1744770638391,-894.59332952,0.00017999,2]
[358148381,1744770638401,-894.59332952,0.00017999,2]
[358148382,1744770638411,-894.59332952,0.00017999,2]
[358148383,1744770638421,-894.59332952,0.00017999,2]
[358148384,1744770638431,-894.59332952,0.00017999,2]
[358148385,1744770638440,-894.59332952,0.00017999,2]
[358148386,1744770638451,-894.59332952,0.00017999,2]
[358148387,1744770638460,-894.59332952,0.00017999,2]
[358148388,1744770638470,-894.59332952,0.00017999,2]
[358148389,1744770638480,-894.59332952,0.00017999,2]
[358148390,1744770638489,-894.59332952,0.00017999,2]
[358148391,1744770638499,-894.59332952,0.00017999,2]
[358148393,1744770638509,-894.59332952,0.00017999,2]
[358148395,1744770638518,-894.59332952,0.00017999,2]
[358148396,1744770638528,-894.59332952,0.00017999,2]
[358148398,1744770638538,-894.59332952,0.00017999,2]
[358148400,1744770638548,-894.59332952,0.00017999,2]
[358148402,1744770638558,-894.59332952,0.00017999,2]
[358148404,1744770638567,-894.59332952,0.00017999,2]
[358148407,1744770638579,-894.59332952,0.00017999,2]
[358148408,1744770638589,-894.59332952,0.00017999,2]
[358148410,1744770638598,-338.46552385,0.00017999,2]
[358148411,1744770638608,-300.0,0.00017999,2]
[358148412,1744770638618,-674.70159675,0.00017999,2]
[358148413,1744770638628,-500.0,0.00017999,2]
[358148414,1744770638638,-755349.03421555,0.00018,2]
[358148415,1744770638648,-98495.07483615,0.00018,2]
[358148416,1744770638661,-1380.94,0.00018,2]
[358148417,1744770638673,-379.75986534,0.00018,2]
[358148418,1744770638701,-561.52965275,0.00018,2]
[358148419,1744770638713,-3153.94450525,0.00018,2]
[358148421,1744770640209,-341.09203251,0.00018,2]
[358148422,1744770640222,-1328.51783001,0.00018,2]
[358148505,1744770644993,-1220.24843434,0.00018,2]
[358148506,1744770645064,-323.38,0.00018,2]
[358148507,1744770645866,-918.0,0.00018,2]
[358148508,1744770645878,-3459.94836056,0.00018,2]
[358148509,1744770645889,-1006.75001,0.00018,2]
[358148510,1744770645901,-1885.65006,0.00018,2]
[358148511,1744770645921,-1026.4981685,0.00018,2]
[358148512,1744770645932,-2587.6203142,0.00018,2]
[358148513,1744770646140,-1415.44956061,0.00018,2]
[358148515,1744770701825,5000.0,0.00015,2]
[358148516,1744770996135,250.0,0.00017,2]
[358148517,1744771036330,250.0,0.00017,2]
[358148518,1744771194313,200.0,0.00017354,7]
[358148519,1744771261327,203.04440657,0.000265,120]
[358148520,1744771264779,617.5,0.00015394,2]
[358148521,1744771324334,1000.0,0.00017252,2]
[358148522,1744771478225,185.55,0.00017244,2]
[358148523,1744771562386,290.01,0.00017244,2]
[358148524,1744771570176,161.99,0.00017213,2]
[358148527,1744771743022,-268.090082,0.00017524,2]
[358148528,1744771743054,-250.0,0.00017613,2]
[358148529,1744771743086,-2046.22518669,0.00017657,2]
[358148530,1744771773978,150.0,0.00017502,2]
[358148535,1744771832057,-1016.71769931,0.00017657,2]
[358148536,1744771832067,-95.25713828,0.00017657,2]
[358148537,1744771832079,-154.74286172,0.00017657,2]
[358148538,1744771832089,-475.50543866,0.00017658,2]
[358148539,1744771832100,-141.99456134,0.00017658,2]
[358148540,1744771832110,-523.0,0.00017781,2]
[358148541,1744771832119,-150.0,0.00017863,2]
[358148542,1744771832130,-300.0,0.00017899,2]
[358148543,1744771832139,-7922.1472,0.000179,2]
[358148544,1744771832149,-2605.215933,0.000179,2]
[358148545,1744771832160,-2394.784067,0.000179,2]
[358148546,1744771832169,-7238.4981214,0.000179,2]
[358148547,1744771832429,-1541.18937342,0.000179,2]
[358148548,1744771832441,-393.55179488,0.000179,2]
[358148549,1744771832452,-847.7698524,0.000179,2]
[358148550,1744771832463,-1437.26919482,0.000179,2]
[358148551,1744771832475,-1041.72166308,0.000179,2]
[358148553,1744771832485,-164.2893933,0.0001791,2]
[358148555,1744771832494,-165.37,0.00017926,2]
[358148557,1744771832504,-500.0,0.00017973,2]
[358148560,1744771832513,-553.38290686,0.00017973,2]
[358148565,1744771832533,-347.39809314,0.00017973,2]
[358148568,1744771832542,-177.75065926,0.00017989,2]
[358148570,1744771832551,-207.4,0.00017989,2]
[358148572,1744771832561,-500.0,0.00017999,2]
[358148574,1744771832570,-500.0,0.00017999,2]
[358148577,1744771832579,-500.0,0.00017999,2]
[358148580,1744771832588,-500.0,0.00017999,2]
[358148583,1744771832597,-500.0,0.00017999,2]
[358148586,1744771832606,-500.0,0.00017999,2]
[358148589,1744771832615,-500.0,0.00017999,2]
[358148592,1744771832624,-500.0,0.00017999,2]
[358148596,1744771832633,-500.0,0.00017999,2]
[358148599,1744771832643,-500.0,0.00017999,2]
[358148602,1744771832652,-500.0,0.00017999,2]
[358148605,1744771832660,-500.0,0.00017999,2]
[358148608,1744771832669,-500.0,0.00017999,2]
[358148611,1744771832679,-612.19723945,0.00017999,2]
[358148614,1744771832688,-500.0,0.00017999,2]
[358148617,1744771832697,-500.0,0.00017999,2]
[358148620,1744771832706,-500.0,0.00017999,2]
[358148623,1744771832716,-500.0,0.00017999,2]
[358148626,1744771832729,-500.0,0.00017999,2]
[358148629,1744771832738,-500.0,0.00017999,2]
[358148631,1744771832747,-500.0,0.00017999,2]
[358148633,1744771832756,-500.0,0.00017999,2]
[358148635,1744771832765,-500.0,0.00017999,2]
[358148637,1744771832775,-500.0,0.00017999,2]
[358148639,1744771832784,-500.0,0.00017999,2]
[358148641,1744771832793,-184.58281717,0.00017999,2]
[358148643,1744771832805,-315.41718283,0.00017999,2]
[358148645,1744771832814,-500.0,0.00017999,2]
[358148647,1744771832823,-500.0,0.00017999,2]
[358148649,1744771832832,-500.0,0.00017999,2]
[358148651,1744771832841,-500.0,0.00017999,2]
[358148653,1744771832850,-160.46629317,0.00017999,2]
[358148655,1744771832861,-339.53370683,0.00017999,2]
[358148657,1744771832871,-500.0,0.00017999,2]
[358148659,1744771832880,-500.0,0.00017999,2]
[358148661,1744771832889,-500.0,0.00017999,2]
[358148663,1744771832898,-500.0,0.00017999,2]
[358148665,1744771832907,-500.0,0.00017999,2]
[358148667,1744771832916,-85.70293512,0.00017999,2]
[358148669,1744771832927,-414.29706488,0.00017999,2]
[358148671,1744771832937,-500.0,0.00017999,2]
[358148673,1744771832946,-500.0,0.00017999,2]
[358148674,1744771832958,-500.0,0.00017999,2]
[358148675,1744771832967,-500.0,0.00017999,2]
[358148676,1744771832977,-500.0,0.00017999,2]
[358148677,1744771832986,-500.0,0.00017999,2]
[358148678,1744771832995,-500.0,0.00017999,2]
[358148679,1744771833005,-500.0,0.00017999,2]
[358148680,1744771833015,-500.0,0.00017999,2]
[358148681,1744771833024,-500.0,0.00017999,2]
[358148682,1744771833035,-350.0,0.00017999,2]
[358148683,1744771833045,-500.0,0.00017999,2]
[358148684,1744771833055,-500.0,0.00017999,2]
[358148685,1744771833065,-500.0,0.00017999,2]
[358148686,1744771833078,-500.0,0.00017999,2]
[358148687,1744771833088,-536.75599771,0.00017999,2]
[358148688,1744771833098,-536.75599771,0.00017999,2]
[358148689,1744771833108,-536.75599771,0.00017999,2]
[358148690,1744771833117,-536.75599771,0.00017999,2]
[358148691,1744771833126,-536.75599771,0.00017999,2]
[358148692,1744771833136,-536.75599771,0.00017999,2]
[358148693,1744771833146,-536.75599771,0.00017999,2]
[358148694,1744771833155,-536.75599771,0.00017999,2]
[358148695,1744771833165,-536.75599771,0.00017999,2]
[358148696,1744771833174,-536.75599771,0.00017999,2]
[358148697,1744771833184,-536.75599771,0.00017999,2]
[358148698,1744771833193,-536.75599771,0.00017999,2]
[358148699,1744771833203,-536.75599771,0.00017999,2]
[358148700,1744771833213,-536.75599771,0.00017999,2]
[358148701,1744771833223,-215.82190309,0.00017999,2]
[358148702,1744771833243,-320.93409462,0.00017999,2]
[358148703,1744771833253,-536.75599771,0.00017999,2]
[358148704,1744771833262,-536.75599771,0.00017999,2]
[358148705,1744771833271,-491.48890996,0.00017999,2]
[358148706,1744771838149,-45.26708775,0.00017999,2]
[358148707,1744771838159,-536.75599771,0.00017999,2]
[358148708,1744771838169,-536.75599771,0.00017999,2]
[358148709,1744771838179,-536.75599771,0.00017999,2]
[358148710,1744771838188,-144.41214467,0.00017999,2]
[358148711,1744771838200,-287.47431467,0.00017999,2]
[358148712,1744771838211,-104.86953837,0.00017999,2]
[358148713,1744771838220,-536.75599771,0.00017999,2]
[358148714,1744771838230,-111.53588048,0.00017999,2]
[358148715,1744771838242,-425.22011723,0.00017999,2]
[358148716,1744771838252,-351.37988277,0.00017999,2]
[358148717,1744771838264,-185.37611494,0.00017999,2]
[358148718,1744771838274,-536.75599771,0.00017999,2]
[358148719,1744771838283,-536.75599771,0.00017999,2]
[358148720,1744771838292,-9053.64856439,0.00017999,2]
[358148721,1744771838305,-48.58149648,0.00017999,2]
[358148722,1744771838318,-451.41850352,0.00017999,2]
[358148723,1744771838329,-7295.19960709,0.00017999,2]
[358148724,1744771838341,-1355.61195026,0.00017999,2]
[358148725,1744771838350,-3898.15188132,0.00017999,2]
[358148726,1744771838366,-470.30964461,0.00017999,2]
[358148727,1744771838381,-4733.76853494,0.00017999,2]
[358148728,1744771838391,-177.86839268,0.00017999,2]
[358148729,1744771838400,-674.70159675,0.00017999,2]
[358148730,1744771838409,-338.46552385,0.00017999,2]
[358148731,1744771838419,-300.0,0.00017999,2]
[358148732,1744771838428,-480.82575317,0.00017999,2]
[358148733,1744771838442,-19.17424683,0.00017999,2]
[358148734,1744771838452,-388.68006958,0.00017999,2]
[358148735,1744771838461,-5066.64268085,0.00018,2]
[358148736,1744771838476,-750282.3915347,0.00018,2]
[358148737,1744771838494,-163978.60522554,0.00018,2]
[358148738,1744771838508,-1274.22848703,0.00018,2]
[358148804,1744771841812,-105.55362567,0.00018,2]
[358148805,1744771841841,-1200.96862189,0.00018,2]
[358148806,1744771841854,-2384.40045527,0.00018,2]
[358148821,1744771843082,-403.1041437,0.00018,2]
[358148840,1744771844982,-24916.43514444,0.00018,2]
[358148845,1744771846217,-1240.40402185,0.00018,2]
[358148857,1744771978409,2278.0,0.00017502,2]
[358148858,1744772006703,424.55,0.00017421,2]
[358148859,1744772223934,208.48,0.00017452,2]
[358148860,1744772224126,208.48,0.00017456,2]
[358148861,1744772224355,208.48,0.00017461,2]
[358148862,1744772224565,208.48,0.00017466,2]
[358148863,1744772224782,208.48,0.0001747,2]
[358148864,1744772225181,208.48,0.00017475,2]
[358148865,1744772225421,208.48,0.0001748,2]
[358148866,1744772225643,208.48,0.00017484,2]
[358148867,1744772225867,208.48,0.00017489,2]
[358148868,1744772226071,208.48,0.00017493,2]
[358148869,1744772226295,208.48,0.00017498,2]
[358148870,1744772252453,1618.610557,0.00017415,2]
[358148871,1744772253103,-208.48,0.00017503,2]
[358148872,1744772253127,-91.52,0.00017507,2]
[358148873,1744772281024,555.75,0.00015178,2]
[358148874,1744772281295,555.75,0.00017442,2]
[358148875,1744772281706,-116.96,0.00017507,2]
[358148876,1744772281730,-60.35941123,0.00017512,2]
[358148877,1744772296874,200.0,0.00017128,7]
[358148878,1744772327394,390.0,0.000265,120]
[358148879,1744772523581,359.37,0.00016999,2]
[358148880,1744772527050,3032.1,0.00017021,2]
[358148881,1744772535813,400.0,0.000172,6]
[358148882,1744772537911,900.0,0.000173,6]
[358148883,1744772540003,1400.0,0.000174,6]
[358148884,1744772542091,1900.0,0.000175,6]
[358148885,1744772544634,2400.0,0.000176,6]
[358148886,1744772546256,400.0,0.000177,6]
[358148887,1744772548350,400.0,0.000178,6]
[358148888,1744772550437,400.0,0.000179,6]
[358148889,1744772556942,1000.0,0.00016999,2]
[358148890,1744772797222,267.5,0.00016995,2]
[358148891,1744772810153,4108.43,0.0001699,2]
[358148892,1744772848502,250.0,0.00017,2]
[358148893,1744772888803,250.0,0.00017,2]
[358148894,1744772911241,-269.1254,0.00017512,2]
[358148895,1744772980312,-230.8746,0.00017512,2]
[358148896,1744772980342,-148.12058877,0.00017512,2]
[358148897,1744772980372,-156.20860496,0.00017512,2]
[358148898,1744772980401,-208.48,0.00017516,2]
[358148899,1744772980429,-208.48,0.00017521,2]
[358148900,1744772980459,-208.48,0.00017526,2]
[358148901,1744772980488,-208.48,0.0001753,2]
[358148902,1744772980517,-208.48,0.00017535,2]
[358148903,1744772980545,-27.73791343,0.00017539,2]
[358148904,1744772981269,161.22,0.00016995,2]
[358148905,1744773032189,-180.74208657,0.00017539,2]
[358148906,1744773032199,-463.66899906,0.00017787,2]
[358148907,1744773032209,-178.93902164,0.00017788,2]
[358148908,1744773032219,-3640.25164395,0.00017884,2]
[358148909,1744773032231,-854.83398,0.00017884,2]
[358148910,1744773032243,-473.1437296,0.00017884,2]
[358148911,1744773032255,-2571.79212204,0.00017884,2]
[358148912,1744773032296,-250.09937441,0.00017884,2]
[358148913,1744773032305,-137.03285092,0.00017887,2]
[358148914,1744773032316,-254.89796356,0.00017887,2]
[358148915,1744773032351,-109.21878552,0.00017887,2]
[358148916,1744773032361,-1722.3169,0.00017888,2]
[358148917,1744773032371,-691.68014888,0.00017888,2]
[358148918,1744773032385,-308.31985112,0.00017888,2]
[358148919,1744773032395,-166.64346978,0.00017888,2]
[358148920,1744773032404,-432.51941667,0.000179,2]
[358148921,1744773032418,-318.76928333,0.000179,2]
[358148922,1744773032428,-197.50715291,0.000179,2]
[358148923,1744773032438,-465.72451588,0.000179,2]
[358148924,1744773032459,-514.74978412,0.000179,2]
[358148925,1744773032468,-173.57439289,0.000179,2]
[358148926,1744773032478,-300.0,0.00017909,2]
[358148927,1744773032487,-164.2893933,0.0001791,2]
[358148928,1744773032496,-153.558,0.00017954,2]
[358148929,1744773032506,-3966.0,0.00017954,2]
[358148930,1744773032515,-207.4,0.00017965,2]
[358148931,1744773032525,-1641.0,0.00017973,2]
[358148932,1744773032535,-159.94620908,0.00017973,2]
[358148933,1744773032545,-159.67605535,0.00017973,2]
[358148934,1744773032555,-249.55190128,0.00017973,2]
[358148935,1744773032564,-504.89018819,0.00017973,2]
[358148936,1744773032574,-506.98183847,0.00017973,2]
[358148937,1744773032584,-801.303,0.00017973,2]
[358148938,1744773032594,-33733.56498634,0.00017976,2]
[358148939,1744773032604,-171.19,0.00017976,2]
[358148940,1744773032613,-307.0,0.00017984,2]
[358148941,1744773032623,-500.0,0.00017985,2]
[358148942,1744773032633,-500.0,0.00017985,2]
[358148943,1744773032654,-500.0,0.00017985,2]
[358148944,1744773032664,-500.0,0.00017985,2]
[358148945,1744773032674,-500.0,0.00017985,2]
[358148947,1744773032683,-500.0,0.00017985,2]
[358148949,1744773032693,-500.0,0.00017985,2]
[358148951,1744773032702,-500.0,0.00017985,2]
[358148953,1744773032712,-500.0,0.00017985,2]
[358148955,1744773032721,-500.0,0.00017985,2]
[358148957,1744773032731,-500.0,0.00017985,2]
[358148959,1744773032741,-306.12653746,0.00017985,2]
[358148961,1744773032752,-500.0,0.00017985,2]
[358148963,1744773032762,-500.0,0.00017985,2]
[358148965,1744773032771,-500.0,0.00017985,2]
[358148967,1744773032781,-500.0,0.00017985,2]
[358148969,1744773032791,-500.0,0.00017985,2]
[358148971,1744773032800,-500.0,0.00017985,2]
[358148973,1744773032810,-500.0,0.00017985,2]
[358148975,1744773032820,-500.0,0.00017985,2]
[358148977,1744773032830,-500.0,0.00017985,2]
[358148979,1744773032840,-500.0,0.00017985,2]
[358148981,1744773032849,-334.5333727,0.00017985,2]
[358148983,1744773032862,-165.4666273,0.00017985,2]
[358148985,1744773032872,-500.0,0.00017985,2]
[358148987,1744773032882,-500.0,0.00017985,2]
[358148989,1744773032891,-500.0,0.00017985,2]
[358148991,1744773032901,-500.0,0.00017985,2]
[358148993,1744773032911,-500.0,0.00017985,2]
[358148995,1744773032920,-500.0,0.00017985,2]
[358148997,1744773032929,-500.0,0.00017985,2]
[358148999,1744773032939,-500.0,0.00017985,2]
[358149001,1744773032948,-500.0,0.00017985,2]
[358149003,1744773032958,-500.0,0.00017985,2]
[358149005,1744773032968,-500.0,0.00017985,2]
[358149007,1744773032977,-500.0,0.00017985,2]
[358149008,1744773032987,-500.0,0.00017985,2]
[358149009,1744773032997,-500.0,0.00017985,2]
[358149010,1744773033006,-500.0,0.00017985,2]
[358149011,1744773033016,-500.0,0.00017985,2]
[358149012,1744773033026,-500.0,0.00017985,2]
[358149013,1744773033036,-250.0,0.00017985,2]
[358149014,1744773033045,-58810.88902447,0.00017986,2]
[358149021,1744773038296,-934.685912,0.00017884,2]
[358149022,1744773038307,-2345.04709246,0.00017986,2]
[358149023,1744773038403,-1418.97801464,0.00017986,2]
[358149024,1744773038457,-8717.1,0.00017986,2]
[358149025,1744773038468,-366.12785766,0.00017986,2]
[358149026,1744773038511,-11392.46431645,0.00017986,2]
[358149027,1744773038565,-35846.19640862,0.00017986,2]
[358149028,1744773038575,-10205.2344618,0.00017986,2]
[358149029,1744773038585,-1622.8567056,0.00017986,2]
[358149030,1744773038595,-3900.8008712,0.00017986,2]
[358149031,1744773038604,-7790.12085,0.00017986,2]
[358149032,1744773038616,-934.685912,0.00017986,2]
[358149033,1744773038626,-101973.691707,0.00017988,2]
[358149034,1744773038637,-8752.6780287,0.00017988,2]
[358149035,1744773038648,-1479.5920488,0.00017988,2]
[358149036,1744773038662,-3556.440894,0.00017988,2]
[358149037,1744773038674,-201.69790806,0.00017999,2]
[358149038,1744773038684,-230.06276936,0.00017999,2]
[358149039,1744773038693,-202.51885542,0.00017999,2]
[358149040,1744773038703,-7790.12085,0.00017999,2]
[358149041,1744773038712,-934.685912,0.00017999,2]
[358149042,1744773038722,-760300.80188207,0.00018,2]
[358149043,1744773038731,-116063.33073128,0.00018,2]
[358149044,1744773038747,-1062.4557274,0.00018,2]
[358149049,1744773040346,-520.933954,0.00018,2]
[358149050,1744773040557,-622.40087519,0.00018,2]
[358149051,1744773040569,-1259.96086,0.00018,2]
[358149052,1744773040581,-1002.98419924,0.00018,2]
[358149053,1744773040611,-1756.1,0.00018,2]
[358149054,1744773040623,-22611.2559014,0.00018,2]
[358149055,1744773040770,-1735.81173418,0.00018,2]
[358149056,1744773040782,-498.05672967,0.00018,2]
[358149057,1744773040794,-886.90810999,0.00018,2]
[358149065,1744773043230,-341.46735558,0.00018,2]
[358149069,1744773045276,-1061.29224118,0.00018,2]
[358149071,1744773046242,-50219.91359124,0.00018,2]
[358149072,1744773046254,-1907.42836594,0.00018,2]
[358149073,1744773046266,-4545.31242003,0.00018,2]
[358149074,1744773046284,-10826.15425522,0.00018,2]
[358149075,1744773046296,-1042.4337992,0.00018,2]
[358149076,1744773046321,-4387.83576929,0.00018,2]
[358149077,1744773046332,-11481.384185,0.00018,2]
[358149078,1744773046427,-279.88714531,0.00018,2]
[358149079,1744773046480,-396.96729597,0.00018,2]
[358149080,1744773046492,-1654.5,0.00018,2]
[358149081,1744773046534,-674.79429573,0.00018,2]
[358149113,1744773279038,200.0,0.00017404,2]
[358149114,1744773433454,570.59,0.00015484,2]
[358149115,1744773440015,-214.85753708,0.00017557,2]
[358149116,1744773442262,200.0,0.0001731,7]
[358149117,1744773470392,173.8,0.0001737,2]
[358149118,1744773470620,173.8,0.00017392,2]
[358149119,1744773470825,173.8,0.00017414,2]
[358149120,1744773471039,173.8,0.00017435,2]
[358149121,1744773471249,173.8,0.00017457,2]
[358149122,1744773514998,-162.246,0.00017559,2]
[358149123,1744773545649,206.45,0.00017195,2]
[358149124,1744773563604,987.85,0.00017236,2]
[358149125,1744773567893,13975.01,0.00017236,2]
[358149126,1744773589916,-216.5305851,0.00017559,2]
[358149127,1744773664967,7012.20549585,0.00017091,2]
[358149128,1744773664991,16887.79450415,0.00017091,2]
[358149129,1744773666053,160.52535,0.00017559,2]
[358149130,1744773673137,160.52,0.00017069,2]
[358149131,1744773674602,1000.0,0.00017069,2]
[358149132,1744773744390,-160.52535,0.00017559,2]
[358149133,1744773829244,324.49,0.00017069,2]
[358149134,1744773907676,513.29911264,0.00025,30]
[358149135,1744773984512,161.59,0.00016913,2]
[358149136,1744774042234,284.29,0.00016909,2]
[358149137,1744774054444,910.63,0.00016909,2]
[358149138,1744774055071,-4.75534,0.00017559,2]
[358149139,1744774064519,150.0,0.00016905,2]
[358149140,1744774081331,164.29,0.00016905,2]
[358149143,1744774122636,-246.21715298,0.00017604,2]
[358149147,1744774126974,176.44,0.00016902,2]
[358149163,1744774231415,-3.78284702,0.00017604,2]
[358149164,1744774231424,-21232.0,0.00017696,2]
[358149165,1744774231433,-300.0,0.00017745,2]
[358149166,1744774231442,-300.0,0.00017745,2]
[358149167,1744774231451,-10640.18,0.00017746,2]
[358149168,1744774231460,-570.59,0.00017748,2]
[358149169,1744774231468,-150.0,0.00017756,2]
[358149170,1744774231477,-150.0,0.00017809,2]
[358149171,1744774231485,-279.47839207,0.00017813,2]
[358149172,1744774231494,-150.0,0.00017829,2]
[358149173,1744774231503,-299.99,0.00017829,4]
[358149174,1744774231513,-150.0,0.00017834,2]
[358149187,1744774231781,-357.43,0.00017834,2]
[358149190,1744774231796,-11707.3026,0.00017876,2]
[358149193,1744774231806,-150.0,0.00017876,2]
[358149194,1744774231815,-40906.6101768,0.00017877,2]
[358149196,1744774231824,-311.85,0.00017887,2]
[358149198,1744774231835,-16298.30201995,0.00017887,2]
[358149201,1744774231847,-15421.56968005,0.00017887,2]
[358149203,1744774231857,-8321.5865,0.00017888,2]
[358149205,1744774231867,-500.0,0.00017889,2]
[358149207,1744774231878,-500.0,0.00017889,2]
[358149209,1744774231888,-500.0,0.00017889,2]
[358149211,1744774231897,-500.0,0.00017889,2]
[358149213,1744774231907,-255.61265375,0.00017889,2]
[358149215,1744774231917,-12665.51152377,0.0001789,2]
[358149216,1744774231928,-1301.93554296,0.0001789,2]
[358149217,1744774231940,-8506.64910217,0.0001789,2]
[358149218,1744774231951,-6272.97021421,0.0001789,2]
[358149219,1744774231967,-501.34473223,0.0001789,2]
[358149220,1744774231978,-360.98630014,0.0001789,2]
[358149221,1744774231993,-1758.83024329,0.0001789,2]
[358149222,1744774232005,-399.42291662,0.0001789,2]
[358149223,1744774232023,-420.54461945,0.0001789,2]
[358149224,1744774232043,-714.57493333,0.0001789,2]
[358149225,1744774232054,-484.9973765,0.0001789,2]
[358149226,1744774232066,-16289.85095127,0.0001789,2]
[358149227,1744774237648,-6650.5175199,0.0001789,2]
[358149228,1744774237959,-13077.71730893,0.0001789,2]
[358149229,1744774237969,-2180.18,0.0001789,2]
[358149231,1744774237979,-1736.42858766,0.00017892,2]
[358149232,1744774237988,-1736.42858766,0.00017894,2]
[358149233,1744774237997,-1736.42858766,0.00017895,2]
[358149234,1744774238007,-1736.42858766,0.00017897,2]
[358149235,1744774238016,-1736.42858766,0.00017898,2]
[358149236,1744774238025,-223.9791,0.000179,2]
[358149237,1744774238035,-200.58363798,0.000179,2]
[358149238,1744774238044,-4893.2735,0.000179,2]
[358149239,1744774238053,-12500.0,0.000179,2]
[358149240,1744774238063,-1418.2363,0.000179,2]
[358149241,1744774238072,-831.707,0.000179,2]
[358149242,1744774238082,-1736.42858766,0.000179,2]
[358149243,1744774238091,-29381.75998815,0.000179,2]
[358149244,1744774238101,-17288.88591498,0.000179,2]
[358149245,1744774238110,-178.62331413,0.000179,2]
[358149246,1744774238119,-150.0,0.00017903,2]
[358149247,1744774238129,-164.4968807,0.0001791,2]
[358149248,1744774238138,-166.6,0.00017926,2]
[358149249,1744774238148,-150.0,0.00017964,2]
[358149250,1744774238157,-500.0,0.00017973,2]
[358149251,1744774238167,-458.5900532,0.00017973,2]
[358149252,1744774238176,-159.67605464,0.00017973,2]
[358149253,1744774238185,-159.67605454,0.00017973,2]
[358149254,1744774238195,-159.67605704,0.00017973,2]
[358149255,1744774238204,-152.67195498,0.00017973,2]
[358149256,1744774238213,-159.67605704,0.00017973,2]
[358149257,1744774238222,-159.67605703,0.00017973,2]
[358149258,1744774238231,-350.9217941,0.00017973,2]
[358149259,1744774238241,-159.67605703,0.00017973,2]
[358149260,1744774238250,-154.68610749,0.00017973,2]
[358149261,1744774238259,-159.67605454,0.00017973,2]
[358149262,1744774238269,-159.67605464,0.00017973,2]
[358149263,1744774238278,-501.33697521,0.00017973,2]
[358149264,1744774238288,-500.0,0.00017973,2]